bitfinex-derivatives/quotes_SOLF0:USTF0_20250716
["timestamp","ask_amount","ask_price","bid_price","bid_amount"]
[1752624363620,6.1064,163.74,163.72,27.78]
[1752624363921,0.04468407,163.77,163.72,27.78]
[1752624364125,6.1061,163.75,163.72,27.78]
[1752624366125,0.04468407,163.77,163.72,27.78]
[1752624368024,6.15008407,163.77,163.72,27.78]
[1752624368225,0.04468407,163.77,163.72,27.78]
[1752624368716,0.04468407,163.77,163.72,33.8868]
[1752624369219,0.04468407,163.77,163.72,27.78]
[1752624370125,2.40352045,163.87,163.72,27.78]
[1752624370320,12.63782055,163.87,163.72,27.78]
[1752624370527,6.1043,163.8,163.75,6.1058]
[1752624370726,2.40352045,163.86,163.75,6.1058]
[1752624370924,12.63782055,163.87,163.72,27.78]
[1752624371125,6.1045,163.79,163.74,6.1061]
[1752624371928,12.204,163.86,163.73,6.1065]
[1752624372127,2.40352045,163.85,163.73,6.1065]
[1752624372427,6.1056,163.77,163.73,6.1065]
[1752624373424,6.1057,163.76,163.73,6.1065]
[1752624374027,6.1057,163.76,163.74,6.1064]
[1752624374328,6.1057,163.76,163.72,27.78]
[1752624374525,6.1057,163.76,163.73,4.63155947]
[1752624374828,6.1057,163.76,163.73,6.1066]
[1752624375320,6.1062,163.75,163.72,33.887]
[1752624375523,6.1062,163.75,163.73,4.63245232]
[1752624375727,6.1062,163.75,163.72,27.78]
[1752624376022,6.1062,163.75,163.73,4.63252263]
[1752624376223,6.1053,163.77,163.73,6.1067]
[1752624377230,6.1053,163.77,163.74,6.1064]
[1752624378328,6.1059,163.76,163.72,33.8869]
[1752624379026,6.1061,163.75,163.72,33.8869]
[1752624379728,6.1057,163.76,163.73,6.1067]
[1752624380129,2.40051945,163.83,163.73,6.1067]
[1752624380926,6.1054,163.77,163.74,4.63682699]
[1752624381124,6.1054,163.77,163.73,6.1067]
[1752624381326,2.40051945,163.83,163.74,4.63679869]
[1752624381526,6.1051,163.78,163.73,6.1067]
[1752624381727,6.1051,163.78,163.74,4.63723593]
[1752624381927,2.4016536,163.83,163.73,6.1067]
[1752624382432,2.40177687,163.83,163.74,36.71]
[1752624382627,6.1048,163.79,163.74,36.71]
[1752624382828,6.1048,163.79,163.74,42.8163]
[1752624383628,6.1044,163.8,163.75,6.106]
[1752624385029,2.40177687,163.85,163.76,6.1056]
[1752624385224,2.40177687,163.86,163.74,36.71]
[1752624385428,6.104,163.81,163.75,10.74334206]
[1752624385727,6.104,163.81,163.75,6.1058]
[1752624386329,6.1042,163.8,163.74,42.8161]
[1752624386531,6.1042,163.8,163.74,36.71]
[1752624386831,2.40177687,163.84,163.74,36.71]
[1752624387031,10.2343001,163.85,163.74,36.71]
[1752624387234,6.1044,163.8,163.74,36.71]
[1752624387436,2.40177687,163.84,163.74,36.71]
[1752624387727,6.1044,163.8,163.74,36.71]
[1752624387933,2.40177687,163.84,163.74,36.71]
[1752624388325,6.1046,163.79,163.74,36.71]
[1752624389134,6.1046,163.79,163.74,42.8163]
[1752624390131,6.1046,163.79,163.74,36.71]
[1752624390337,6.1049,163.78,163.74,36.71]
[1752624390735,10.2343001,163.85,163.74,36.71]
[1752624390936,6.1047,163.79,163.74,36.71]
[1752624391136,2.40387949,163.84,163.74,36.71]
[1752624391326,10.2343001,163.85,163.74,36.71]
[1752624391834,10.2343001,163.86,163.74,36.71]
[1752624392034,10.2343001,163.87,163.74,36.71]
[1752624392731,10.2343001,163.85,163.74,36.71]
[1752624394637,6.1049,163.78,163.74,36.71]
[1752624396637,2.40387949,163.84,163.74,36.71]
[1752624396839,12.63817959,163.85,163.74,36.71]
[1752624397443,6.1051,163.78,163.74,36.71]
[1752624397839,2.40387949,163.84,163.74,36.71]
[1752624398040,6.1058,163.76,163.74,36.71]
[1752624398342,2.40387949,163.84,163.74,36.71]
[1752624398538,12.2056,163.84,163.74,36.71]
[1752624398744,12.63817959,163.83,163.74,36.71]
[1752624399243,6.106,163.75,163.74,36.71]
[1752624403150,6.1059,163.76,163.74,36.71]
[1752624404349,6.106,163.75,163.74,36.71]
[1752624404550,2.39890846,163.81,163.74,36.71]
[1752624404952,6.1059,163.76,163.74,36.71]
[1752624405451,6.1051,163.78,163.74,36.71]
[1752624405952,6.1047,163.79,163.74,36.71]
[1752624406451,2.39890846,163.81,163.74,36.71]
[1752624406647,2.39470293,163.84,163.74,36.71]
[1752624408351,6.1046,163.79,163.74,36.71]
[1752624408752,6.1046,163.79,163.74,42.8164]
[1752624409352,6.1051,163.78,163.74,36.71]
[1752624410354,6.1053,163.77,163.74,36.71]
[1752624412857,6.1053,163.77,163.74,42.8164]
[1752624413353,6.1053,163.77,163.74,36.71]
[1752624413856,6.1057,163.76,163.74,36.71]
[1752624414453,6.1057,163.76,163.75,4.63382798]
[1752624414652,6.1057,163.76,163.74,36.71]
[1752624416252,6.106,163.75,163.74,36.71]
[1752624418862,6.1058,163.76,163.74,36.71]
[1752624419162,12.62973337,163.82,163.74,36.71]
[1752624419358,2.39543327,163.81,163.7,6.1076]
[1752624419655,10.2343001,163.82,163.7,6.1076]
[1752624419860,10.2343001,163.82,163.69,6.1081]
[1752624420258,6.1058,163.76,163.67,527.74]
[1752624420458,6.1058,163.76,163.68,4.63415368]
[1752624420658,2.39543327,163.81,163.69,4.63415368]
[1752624420962,10.2343001,163.79,163.67,527.74]
[1752624421156,14.60363327,163.81,163.66,181.14]
[1752624421157,10.2343001,163.77,163.66,181.14]
[1752624423170,10.2343001,163.78,163.66,181.14]
[1752624423365,6.1077,163.71,163.66,181.14]
[1752624423668,2.39543327,163.77,163.66,181.14]
[1752624423870,6.108,163.7,163.65,14.41]
[1752624425270,6.1083,163.69,163.65,14.41]
[1752624425567,2.39196457,163.77,163.65,14.41]
[1752624425767,12.2098,163.78,163.65,14.41]
[1752624425963,2.39196457,163.77,163.64,31.36]
[1752624426264,12.2118,163.76,163.64,31.36]
[1752624426469,2.39067432,163.75,163.64,31.36]
[1752624426862,6.1089,163.68,163.64,31.36]
[1752624427062,2.39067432,163.75,163.64,31.36]
[1752624427973,10.2343001,163.78,163.64,31.36]
[1752624428372,6.1077,163.71,163.65,6.1095]
[1752624429675,6.1077,163.71,163.66,6.1093]
[1752624429878,2.38904452,163.79,163.64,31.36]
[1752624430278,2.38904452,163.79,163.65,6.1095]
[1752624430879,6.1078,163.71,163.65,6.1095]
[1752624431177,2.38904452,163.79,163.64,37.4699]
[1752624431379,6.108,163.7,163.64,37.4699]
[1752624432482,6.1083,163.69,163.64,37.4699]
[1752624434184,6.1086,163.68,163.64,37.4699]
[1752624434682,6.1086,163.69,163.64,31.36]
[1752624434883,12.2106,163.77,163.64,31.36]
[1752624435479,12.2106,163.77,163.65,6.1096]
[1752624435884,12.2106,163.77,163.64,31.36]
[1752624436785,132.52066542,163.84,163.65,9.756893]
[1752624436986,132.52066542,163.84,163.68,5.13517359]
[1752624437285,6.1042,163.8,163.75,6.1058]
[1752624437682,132.52066542,163.84,163.68,5.13517359]
[1752624437882,6.1049,163.78,163.73,6.1065]
[1752624438180,6.1049,163.78,163.67,5.13517359]
[1752624438375,6.1049,163.78,163.74,6.1063]
[1752624439981,6.1049,163.78,163.75,6.1059]
[1752624440178,6.1049,163.78,163.67,5.13517359]
[1752624440686,6.1053,163.77,163.74,6.1062]
[1752624442189,6.105,163.78,163.74,6.1062]
[1752624445991,6.105,163.78,163.75,6.1058]
[1752624448291,6.1055,163.77,163.66,186.19517359]
[1752624448892,6.1055,163.77,163.66,181.06]
[1752624449091,6.1055,163.77,163.65,5.13517359]
[1752624449591,6.105,163.78,163.66,186.01517359]
[1752624449790,6.105,163.78,163.67,180.88]
[1752624449989,6.105,163.78,163.67,708.68]
[1752624450291,6.1053,163.77,163.67,708.68]
[1752624450587,139.3131841,163.84,163.67,527.8]
[1752624450786,6.1056,163.77,163.67,527.8]
[1752624450987,132.52066542,163.84,163.67,527.8]
[1752624451184,6.1046,163.79,163.76,6.1056]
[1752624451589,132.52066542,163.84,163.68,12.2172]
[1752624451788,132.52066542,163.84,163.77,6.105]
[1752624453200,132.52066542,163.84,163.76,6.1055]
[1752624453392,132.52066542,163.84,163.68,17.35237359]
[1752624454095,6.1048,163.79,163.75,6.1058]
[1752624454995,6.105,163.78,163.75,6.1058]
[1752624457506,132.52066542,163.84,163.74,6.1063]
[1752624458100,132.52066542,163.84,163.67,527.8]
[1752624458299,139.3131841,163.84,163.68,180.78]
[1752624458496,139.3131841,163.84,163.68,217.71]
[1752624459409,6.1055,163.77,163.68,217.71]
[1752624459912,6.1056,163.76,163.72,6.1069]
[1752624460811,6.1056,163.76,163.73,6.1067]
[1752624461210,6.1053,163.77,163.73,6.1067]
[1752624461806,6.1051,163.78,163.73,6.1067]
[1752624462312,132.52066542,163.84,163.73,6.1067]
[1752624464412,6.1048,163.79,163.73,6.1067]
[1752624464612,132.52066542,163.84,163.72,6.107]
[1752624465115,6.1048,163.79,163.72,6.107]
[1752624465416,6.1048,163.79,163.73,6.1067]
[1752624466614,6.1049,163.78,163.73,6.1067]
[1752624466815,6.1049,163.78,163.72,6.107]
[1752624467016,6.1049,163.78,163.68,217.71]
[1752624467211,6.1054,163.77,163.73,6.1067]
[1752624467916,6.1057,163.76,163.72,6.1069]
[1752624468919,6.1057,163.76,163.73,6.1067]
[1752624469918,6.1061,163.75,163.72,6.1071]
[1752624470620,6.1065,163.74,163.71,6.1074]
[1752624470816,6.79251868,163.82,163.68,217.71]
[1752624471823,6.79251868,163.82,163.7,6.1077]
[1752624472120,6.79251868,163.81,163.68,217.71]
[1752624472314,6.79251868,163.8,163.68,36.93]
[1752624472513,6.79251868,163.78,163.68,36.93]
[1752624472911,6.1068,163.73,163.68,36.93]
[1752624473313,6.79251868,163.78,163.68,36.93]
[1752624473517,6.1066,163.74,163.68,43.0386]
[1752624474221,6.1066,163.74,163.69,6.1082]
[1752624474923,6.79251868,163.8,163.68,36.93]
[1752624475116,9.18931032,163.81,163.68,36.93]
[1752624475421,6.79251868,163.81,163.68,36.93]
[1752624476521,6.1047,163.79,163.72,6.107]
[1752624476718,6.1047,163.79,163.7,180.66]
[1752624476924,6.79251868,163.82,163.7,180.66]
[1752624477223,6.79251868,163.81,163.71,6.1073]
[1752624478016,6.79251868,163.81,163.7,180.66]
[1752624478017,6.79251868,163.81,163.68,36.93]
[1752624478216,6.79251868,163.79,163.68,36.93]
[1752624479123,6.79251868,163.79,163.68,43.0383]
[1752624479619,6.1065,163.74,163.68,43.0383]
[1752624479821,139.3131841,163.84,163.69,5.11324423]
[1752624480025,132.52066542,163.84,163.7,5.11324423]
[1752624480226,132.52066542,163.84,163.76,6.1054]
[1752624480622,6.1036,163.82,163.76,6.1054]
[1752624481024,132.52066542,163.84,163.76,6.1054]
[1752624481225,139.3131841,163.84,163.76,6.1054]
[1752624482124,132.52066542,163.84,163.74,180.62]
[1752624482328,139.3131841,163.84,163.74,180.62]
[1752624482629,9.19728228,163.83,163.74,180.62]
[1752624482928,9.19728228,163.83,163.74,186.7262]
[1752624483228,9.19728228,163.83,163.74,180.62]
[1752624483427,9.19728228,163.83,163.74,186.7264]
[1752624483428,6.1046,163.79,163.74,186.7264]
[1752624483629,6.79251868,163.81,163.71,180.6]
[1752624483926,9.19646361,163.82,163.73,6.1065]
[1752624484122,6.79251868,163.82,163.73,6.1065]
[1752624484529,6.1049,163.79,163.73,6.1065]
[1752624484930,6.1049,163.79,163.74,6.1063]
[1752624486432,6.79251868,163.82,163.73,6.1066]
[1752624486832,6.79251868,163.82,163.71,180.6]
[1752624487233,6.1048,163.79,163.74,6.1062]
[1752624488732,6.79251868,163.82,163.71,180.6]
[1752624488733,6.1049,163.78,163.71,180.6]
[1752624488929,6.1049,163.78,163.73,6.1066]
[1752624489829,6.1053,163.77,163.73,6.1066]
[1752624491131,6.1053,163.77,163.72,6.107]
[1752624491337,132.52066542,163.84,163.68,36.93]
[1752624491338,6.79251868,163.8,163.68,36.93]
[1752624491537,6.79251868,163.78,163.68,36.93]
[1752624491732,6.1066,163.74,163.69,6.1079]
[1752624492437,6.1066,163.74,163.68,36.93]
[1752624492438,6.1066,163.74,163.7,6.1079]
[1752624492834,6.1068,163.73,163.69,6.1081]
[1752624493529,6.79251868,163.79,163.69,6.1081]
[1752624493530,6.1071,163.72,163.69,6.1081]
[1752624493735,6.79251868,163.78,163.69,6.1081]
[1752624493933,6.79251868,163.8,163.68,36.93]
[1752624494137,6.1062,163.75,163.68,36.93]
[1752624494538,6.1062,163.75,163.71,6.1073]
[1752624494737,6.1062,163.75,163.68,36.93]
[1752624494929,6.1065,163.74,163.71,6.1073]
[1752624496334,6.1062,163.75,163.71,6.1073]
[1752624496738,6.79251868,163.8,163.71,6.1073]
[1752624497638,6.1061,163.75,163.71,6.1073]
[1752624497837,6.1061,163.75,163.7,6.1077]
[1752624498032,6.79251868,163.79,163.7,6.1077]
[1752624498229,6.1062,163.75,163.7,6.1077]
[1752624499041,6.1062,163.75,163.71,40.59]
[1752624499640,6.1058,163.76,163.71,46.6975]
[1752624501240,6.1059,163.76,163.71,40.59]
[1752624502246,6.106,163.75,163.71,40.59]
[1752624504347,6.1065,163.74,163.71,40.59]
[1752624505047,6.1062,163.75,163.71,40.59]
[1752624506149,6.1064,163.74,163.71,40.59]
[1752624506650,6.79251868,163.78,163.71,40.59]
[1752624508254,6.79251868,163.78,163.72,180.44]
[1752624508449,6.79251868,163.81,163.72,180.44]
[1752624508645,6.79251868,163.82,163.72,180.44]
[1752624509048,6.79251868,163.82,163.73,6.1065]
[1752624509253,6.79251868,163.82,163.72,180.44]
[1752624509448,6.1048,163.79,163.74,6.1063]
[1752624510952,6.105,163.78,163.73,6.1066]
[1752624512147,6.1053,163.77,163.72,186.547]
[1752624512453,6.79251868,163.82,163.72,186.547]
[1752624512651,6.79251868,163.81,163.72,186.547]
[1752624512851,6.79251868,163.82,163.72,186.547]
[1752624513152,6.79251868,163.82,163.73,6.1067]
[1752624513652,6.1053,163.77,163.72,180.44]
[1752624513848,6.1053,163.77,163.72,186.5468]
[1752624514244,6.1053,163.77,163.72,180.44]
[1752624515254,6.1053,163.77,163.73,6.1067]
[1752624515454,6.1059,163.76,163.71,40.59]
[1752624515753,6.1059,163.76,163.72,186.4869]
[1752624516550,6.79251868,163.8,163.71,40.59]
[1752624516853,6.79251868,163.81,163.71,220.95]
[1752624517253,6.79251868,163.81,163.72,6.1069]
[1752624518051,6.1055,163.77,163.72,6.1069]
[1752624518853,6.1055,163.77,163.73,6.1067]
[1752624519054,6.79251868,163.82,163.73,6.1067]
[1752624519555,6.1054,163.77,163.73,6.1067]
[1752624521355,6.1057,163.76,163.73,6.1067]
[1752624521950,6.1057,163.76,163.72,6.107]
[1752624522151,6.1057,163.76,163.71,220.95]
[1752624522652,6.1057,163.76,163.72,6.1068]
[1752624523356,6.79251868,163.82,163.71,220.95]
[1752624523657,6.79251868,163.83,163.71,220.95]
[1752624524348,139.3131841,163.84,163.71,226.08657917]
[1752624525154,132.52066542,163.84,163.72,5.13657917]
[1752624525557,0.04179001,163.79,163.72,5.13657917]
[1752624525755,0.04179001,163.79,163.76,0.03890014]
[1752624525951,0.04179001,163.79,163.77,6.1049]
[1752624526154,0.04179001,163.79,163.77,186.4049]
[1752624529057,0.04179001,163.79,163.77,180.3]
[1752624529556,0.04179001,163.79,163.76,180.31890014]
[1752624529959,0.04179001,163.79,163.76,0.03890014]
[1752624530662,0.04179001,163.79,163.76,6.14440014]
[1752624531459,0.04179001,163.79,163.76,0.03890014]
[1752624532060,0.04179001,163.79,163.76,6.14430014]
[1752624535464,0.04179001,163.79,163.76,0.03890014]
[1752624536064,0.04179001,163.79,163.76,6.14450014]
[1752624536267,0.04179001,163.79,163.76,0.03890014]
[1752624539966,0.04179001,163.79,163.76,6.14450014]
[1752624540762,0.04179001,163.79,163.76,0.03890014]
[1752624540969,6.79251868,163.88,163.76,0.03890014]
[1752624541173,6.79251868,163.88,163.8,6.104]
[1752624541364,6.79251868,163.88,163.8,180.2]
[1752624541559,6.79251868,163.89,163.8,180.2]
[1752624541763,6.79251868,163.9,163.8,180.2]
[1752624542369,6.1014,163.88,163.83,6.14743441]
[1752624542569,534.53251868,163.91,163.83,6.14743441]
[1752624542763,534.53251868,163.91,163.83,0.04443441]
[1752624542968,6.1016,163.87,163.83,6.14743441]
[1752624543469,6.1011,163.89,163.83,0.04443441]
[1752624543674,650.58630412,163.91,163.83,0.04443441]
[1752624544072,657.3788228,163.91,163.83,0.04443441]
[1752624545377,6.1017,163.87,163.83,0.04443441]
[1752624546176,657.3788228,163.91,163.83,0.04443441]
[1752624546669,6.1018,163.87,163.83,0.04443441]
[1752624546875,657.3788228,163.91,163.83,0.04443441]
[1752624547075,6.79251868,163.9,163.83,0.04443441]
[1752624548075,6.1025,163.85,163.83,0.04443441]
[1752624549179,6.1021,163.86,163.83,0.04443441]
[1752624549982,6.79251868,163.9,163.83,0.04443441]
[1752624550180,650.58630412,163.91,163.83,0.04443441]
[1752624551276,6.1018,163.87,163.83,0.04443441]
[1752624551477,657.3788228,163.91,163.83,0.04443441]
[1752624551875,6.1023,163.85,163.83,0.04443441]
[1752624552271,657.3788228,163.91,163.83,0.04443441]
[1752624552470,6.1025,163.85,163.83,0.04443441]
[1752624552675,6.79251868,163.9,163.83,0.04443441]
[1752624552879,6.79251868,163.89,163.83,0.04443441]
[1752624553079,6.1027,163.84,163.83,0.04443441]
[1752624555480,6.1042,163.8,163.77,32.04]
[1752624555676,6.79251868,163.85,163.77,32.04]
[1752624555981,6.104,163.81,163.77,32.04]
[1752624559176,6.79251868,163.86,163.77,32.04]
[1752624559380,6.79251868,163.85,163.77,32.04]
[1752624559982,6.1041,163.81,163.77,32.04]
[1752624560282,6.1041,163.81,163.75,6.1058]
[1752624560783,6.79251868,163.85,163.75,6.1058]
[1752624561081,0.03941746,163.8,163.75,6.1058]
[1752624561680,6.14361746,163.8,163.74,6.1062]
[1752624563380,6.1045,163.79,163.74,6.1062]
[1752624563975,0.03941746,163.8,163.72,32.42]
[1752624564583,6.1055,163.77,163.72,32.42]
[1752624564783,0.03941746,163.8,163.72,32.42]
[1752624564984,6.79251868,163.81,163.72,32.42]
[1752624565487,0.04007475,163.78,163.72,32.42]
[1752624566290,6.1058,163.76,163.72,32.42]
[1752624567788,6.1054,163.77,163.72,32.42]
[1752624568691,6.1057,163.76,163.72,32.42]
[1752624569896,6.1061,163.75,163.72,32.42]
[1752624570191,6.1062,163.75,163.72,32.42]
[1752624571096,6.1066,163.74,163.72,32.42]
[1752624571389,12.2051,163.85,163.72,32.42]
[1752624571390,6.79251868,163.8,163.72,32.42]
[1752624571590,6.79251868,163.79,163.72,32.42]
[1752624571791,6.1068,163.73,163.72,32.42]
[1752624573594,6.1065,163.74,163.72,32.42]
[1752624576290,6.1068,163.73,163.72,32.42]
[1752624576496,6.79251868,163.8,163.72,32.42]
[1752624576693,6.79251868,163.83,163.72,32.42]
[1752624577598,6.79251868,163.83,163.72,38.5269]
[1752624578104,6.1052,163.78,163.76,0.04657364]
[1752624578406,0.04473552,163.79,163.76,0.04657364]
[1752624579197,6.1053,163.77,163.76,0.04657364]
[1752624582302,6.105,163.78,163.76,0.04657364]
[1752624583912,6.14933552,163.79,163.76,0.04657364]
[1752624584302,0.04473552,163.79,163.76,0.04657364]
[1752624584507,6.1051,163.78,163.76,0.04657364]
[1752624584907,6.14933552,163.79,163.76,0.04657364]
[1752624585314,0.04473552,163.79,163.76,0.04657364]
[1752624586108,6.105,163.78,163.76,0.04657364]
[1752624586509,0.04473552,163.79,163.76,0.04657364]
[1752624587001,6.1053,163.77,163.76,0.04657364]
[1752624597911,6.1051,163.78,163.76,0.04657364]
[1752624599815,6.1053,163.77,163.76,0.04657364]
[1752624600815,6.1051,163.78,163.76,0.04657364]
[1752624601016,0.04473552,163.79,163.76,0.04657364]
[1752624601319,6.1051,163.78,163.76,0.04657364]
[1752624601821,6.1049,163.78,163.76,0.04657364]
[1752624602120,0.04473552,163.79,163.76,0.04657364]
[1752624603420,6.1049,163.78,163.76,0.04657364]
[1752624603921,6.14943552,163.79,163.76,0.04657364]
[1752624604722,6.14943552,163.79,163.76,31.37657364]
[1752624606027,6.1051,163.78,163.76,31.37657364]
[1752624606927,6.14943552,163.79,163.76,31.37657364]
[1752624608027,0.04473552,163.79,163.76,31.37657364]
[1752624608727,0.04473552,163.79,163.76,37.48217364]
[1752624608928,0.04473552,163.79,163.76,31.37657364]
[1752624610029,0.04473552,163.79,163.78,6.1049]
[1752624610232,6.1033,163.83,163.76,31.37657364]
[1752624610824,6.1028,163.84,163.76,31.37657364]
[1752624611331,6.1028,163.84,163.76,31.33]
[1752624611525,6.1028,163.84,163.78,0.04581884]
[1752624611830,6.1028,163.84,163.8,6.104]
[1752624612330,6.1031,163.83,163.8,6.104]
[1752624612932,6.1031,163.83,163.8,6.14265106]
[1752624613528,0.04188282,163.83,163.8,6.14265106]
[1752624614830,0.04188282,163.83,163.81,6.1037]
[1752624615038,0.04188282,163.83,163.8,0.03865106]
[1752624615634,0.04188282,163.83,163.82,6.1034]
[1752624623638,0.04188282,163.83,163.8,0.03865106]
[1752624624034,0.04188282,163.83,163.81,6.1037]
[1752624624935,6.14498282,163.83,163.8,0.03865106]
[1752624625637,6.14498282,163.83,163.8,6.14255106]
[1752624626236,0.04188282,163.83,163.8,0.03865106]
[1752624626439,0.04188282,163.83,163.81,6.1038]
[1752624626740,0.04188282,163.83,163.8,0.03865106]
[1752624627640,6.8344015,163.83,163.76,31.33]
[1752624628038,6.1047,163.79,163.76,31.33]
[1752624628446,6.1047,163.79,163.74,533.6861]
[1752624629737,6.1049,163.78,163.74,527.58]
[1752624631145,6.1049,163.78,163.74,533.6864]
[1752624631937,6.1049,163.78,163.73,6.1066]
[1752624632243,6.14442366,163.78,163.74,0.04207911]
[1752624632445,6.1054,163.77,163.74,0.04207911]
[1752624632641,0.03952366,163.78,163.74,0.04207911]
[1752624633044,6.106,163.75,163.74,0.04207911]
[1752624633954,0.03952366,163.78,163.74,0.04207911]
[1752624635748,0.03952366,163.78,163.74,6.14827911]
[1752624636948,6.79251868,163.88,163.75,179.86]
[1752624637343,6.1032,163.83,163.77,6.1049]
[1752624637744,6.79251868,163.9,163.75,179.86]
[1752624638346,6.1029,163.84,163.81,0.04655157]
[1752624638647,6.1029,163.84,163.79,6.1043]
[1752624638951,6.1029,163.84,163.81,0.04110946]
[1752624643354,6.79251868,163.89,163.81,0.04110946]
[1752624643751,6.1022,163.86,163.81,0.04110946]
[1752624644153,6.79251868,163.9,163.81,0.04110946]
[1752624644556,122.84630412,163.91,163.81,0.04110946]
[1752624644557,6.79251868,163.89,163.81,0.04110946]
[1752624644854,6.1032,163.83,163.77,6.105]
[1752624645452,6.1032,163.83,163.78,0.04359258]
[1752624645951,6.1034,163.82,163.78,0.04359258]
[1752624646356,6.104,163.81,163.76,6.1055]
[1752624646557,6.104,163.81,163.78,0.04188021]
[1752624647457,6.1042,163.8,163.78,0.04188021]
[1752624651364,6.1045,163.79,163.78,0.04188021]
[1752624651757,6.79251868,163.86,163.74,179.82]
[1752624651962,6.1052,163.78,163.77,0.04419426]
[1752624653266,6.79251868,163.85,163.77,0.04419426]
[1752624653267,6.1045,163.8,163.77,0.04419426]
[1752624654668,6.1046,163.79,163.77,0.04419426]
[1752624655166,6.1049,163.78,163.77,0.04419426]
[1752624655570,6.79251868,163.84,163.7,527.64]
[1752624655571,6.79251868,163.82,163.7,527.64]
[1752624655868,6.79251868,163.81,163.7,527.64]
[1752624656264,6.1059,163.76,163.71,6.1073]
[1752624659272,6.79251868,163.82,163.7,527.64]
[1752624659273,6.79251868,163.82,163.7,533.7477]
[1752624659773,6.79251868,163.82,163.7,527.64]
[1752624659968,19.75773346,163.88,163.68,179.82]
[1752624659969,6.79251868,163.81,163.68,179.82]
[1752624660164,19.00021868,163.81,163.68,179.82]
[1752624660371,6.107,163.73,163.68,179.82]
[1752624660573,17.02681878,163.83,163.68,179.82]
[1752624660772,6.1047,163.79,163.68,184.95657917]
[1752624660976,6.79251868,163.84,163.68,179.82]
[1752624661271,6.79251868,163.83,163.73,6.1064]
[1752624661569,6.79251868,163.83,163.72,179.82]
[1752624661774,6.79251868,163.83,163.71,179.82]
[1752624662268,6.79251868,163.82,163.71,179.82]
[1752624662468,6.1059,163.76,163.72,6.107]
[1752624662674,6.79251868,163.82,163.66,46.8486]
[1752624662868,6.79251868,163.82,163.67,179.82]
[1752624663067,6.106,163.76,163.71,6.1074]
[1752624663475,6.106,163.76,163.67,179.82]
[1752624664078,6.106,163.75,163.67,179.82]
[1752624664379,6.79251868,163.8,163.66,214.45]
[1752624664679,6.1067,163.74,163.68,6.1084]
[1752624664877,6.79251868,163.81,163.66,214.45]
[1752624665173,6.79251868,163.81,163.67,180.2]
[1752624665777,6.79251868,163.83,163.67,180.2]
[1752624665976,6.79251868,163.82,163.67,180.2]
[1752624666479,6.1062,163.75,163.7,6.1077]
[1752624666879,6.1064,163.74,163.7,6.1077]
[1752624667483,6.1064,163.74,163.69,6.1081]
[1752624668181,6.107,163.73,163.69,6.1081]
[1752624668981,6.1072,163.72,163.68,6.1086]
[1752624669276,10.2343001,163.82,163.67,180.2]
[1752624669277,6.79251868,163.79,163.67,180.2]
[1752624669485,6.79251868,163.79,163.67,186.3087]
[1752624669677,6.79251868,163.78,163.67,180.2]
[1752624670078,6.79251868,163.78,163.67,186.3087]
[1752624670281,6.79251868,163.78,163.67,180.2]
[1752624670475,6.1067,163.74,163.69,6.108]
[1752624670872,6.79251868,163.8,163.67,180.2]
[1752624671283,6.79251868,163.8,163.68,6.1084]
[1752624671477,6.79251868,163.79,163.67,180.2]
[1752624671880,6.1067,163.74,163.69,6.1082]
[1752624672082,6.79251868,163.8,163.69,6.1082]
[1752624672376,6.79251868,163.79,163.67,180.2]
[1752624672675,6.79251868,163.78,163.67,180.2]
[1752624672882,6.1082,163.7,163.67,180.2]
[1752624673075,6.79251868,163.77,163.67,180.2]
[1752624673879,6.79251868,163.81,163.67,180.2]
[1752624674077,6.79251868,163.81,163.69,6.1081]